Cogmind - Beta 13 @@@ ROGUE MODE // 2024.04.07 @ 20:13:59 Player: Evilsquid Result: Destroyed by D-53 Grenadier with Mini Grenade Launcher Performance ------------- Evolutions (0) 0 Regions Visited (2) 400 Robots Destroyed (17) 85 Value Destroyed (324) 324 Prototype IDs (0) 0 Alien Tech Used (0) 0 Bonus (0) 0 TOTAL SCORE: 809 Bonus ------- None Cogmind --------- Core Integrity 0/250 Matter 299/300 Energy 99/100 System Corruption 0% Temperature Cool (0) Movement Core (50) Location -10/Mines Parts ------- > --- POWER (1) -------- (None) > --- PROPULSION (2) --- (None) > --- UTILITY (2) ------ (None) > --- WEAPON (2) ------- (None) > --- INVENTORY (5) ---- Signal Interpreter Improved Terrain Scanner Seismic Detector Mini Grenade Launcher Mini Grenade Launcher Peak State ------------ > --- POWER ------------ Light Nuclear Core > --- PROPULSION ------- Light Treads Light Treads > --- UTILITY ---------- Cooling System Large Storage Unit > --- WEAPON ----------- Beam Cannon Light Cannon > --- INVENTORY -------- Ion Engine Light Treads Light Treads High-capacity Matter Pod Signal Interpreter Improved Terrain Scanner Terrain Scan Processor Seismic Detector Mini Grenade Launcher Mini Grenade Launcher [Rating: 11] Favorites ----------- Power Ion Engine Engine Ion Engine Power Core Light Nuclear Core Propulsion Light Treads Treads Light Treads Utility Cooling System Device Cooling System Storage Large Storage Unit Weapon Beam Cannon Energy Cannon Beam Cannon Ballistic Gun Assault Rifle Ballistic Cannon Light Cannon Build | -11 -10 -10 ------- Run | Yrd Mat Min Slots Evolved . | . . . Power . | . . . Propulsion . | . . . Utility . | . . . Weapon . | . . . Parts Attached 12 | 7 4 1 Power 2 | 1 . 1 Engine 1 | 1 . . Core 1 | . . 1 Reactor . | . . . Propulsion 2 | 2 . . Treads 2 | 2 . . Leg . | . . . Wheel . | . . . Hover . | . . . Flight . | . . . Utility 4 | 2 2 . Device 2 | 1 1 . Storage 2 | 1 1 . Processor . | . . . Hackware . | . . . Protection . | . . . Artifact . | . . . Weapon 4 | 2 2 . Energy Gun . | . . . Energy Cannon 1 | . 1 . Ballistic Gun 2 | 2 . . Ballistic Cannon 1 | . 1 . Launcher . | . . . Special Weapon . | . . . Impact Weapon . | . . . Slashing Weapon . | . . . Piercing Weapon . | . . . Special Melee Weapon . | . . . Unidentified Prototypes . | . . . Parts Lost 5 | . . 5 Power 1 | . . 1 Propulsion 2 | . . 2 Utility . | . . . Weapon 2 | . . 2 Highest Loss Streak 5 | . . 5 To Critical Strikes . | . . . Average Slot Usage (%) 99 | . 100 99 Engine 13 | . 14 12 Treads 28 | . 28 28 Device 14 | . 14 14 Storage 14 | . 14 14 Energy Cannon 13 | . 12 13 Ballistic Gun 2 | . 4 . Ballistic Cannon 12 | . 10 14 Naked Turns 1 | . . 1 Heaviest Build 33 | 14 33 33 Greatest Support 40 | 40 40 40 Greatest Overweight (x) 8 | 1 . 8 Average Overweight (x) . | . . . Largest Inventory Capacity 15 | 8 15 15 Average Capacity 11 | 7 9 14 Most Carried 10 | 3 8 10 Average Carried 7 | 1 7 8 Final Capacity 15 | 8 15 5 Final Carried 8 | 3 8 5 Class Distribution -------------------- 100% | Mutant Dominant Class ---------------- Mutant | -10/Materials Mutant | -10/Mines Resources | -11 -10 -10 ----------- Run | Yrd Mat Min Matter Collected 488 | 307 153 28 Remotely . | . . . Salvage Created 411 | 42 272 97 Parts 29 | 4 17 8 Haulers Intercepted 2 | . 2 . Recyclers Shooed 1 | 1 . . Parts Field Recycled . | . . . Retrieved Matter . | . . . Parts Self-Destructed . | . . . Prevented . | . . . Kills | -11 -10 -10 ------- Run | Yrd Mat Min Combat Hostiles Destroyed 12 | . 7 5 Cannons 12 | . 7 5 Classes Destroyed 5 | 1 4 . Tunneler 2 | 2 . . Hauler 2 | . 2 . Watcher 1 | . 1 . Swarmer 6 | . 3 3 Grunt 6 | . 4 2 Best Kill Streak 4 | 1 4 3 Combat Bots Only 3 | . 3 3 Max Kills in Single Turn 2 | 1 2 1 Gunslinging . | . . . Exploded . | . . . Melee . | . . . Uniques/NPCs Destroyed . | . . . Combat | -11 -10 -10 -------- Run | Yrd Mat Min Hostile Shots Fired 53 | . 22 31 Missed 17 | . 7 10 Damage Taken 879 | . 165 714 Core 271 | . 67 204 Absorbed by Shields . | . . . Core Remaining (%) 100 | 100 . . Volleys Fired 51 | 13 27 11 Largest 2 | 2 2 2 Hottest 95 | 40 95 95 Shots Fired 100 | 26 54 20 Gun 26 | 26 . . Cannon 74 | . 54 20 Launcher . | . . . Special . | . . . Kinetic 64 | 26 27 11 Thermal 36 | . 27 9 Explosive . | . . . Electromagnetic . | . . . Robot Hit Streak 5 | 5 5 4 Robot Miss Streak 5 | 3 5 2 Penetration Max . | . . . Secondary Targets . | . . . Shots Hit Robots 51 | 13 27 11 Core Hits 25 | 6 12 7 Critical Kills . | . . . Critical Parts Destroyed . | . . . Critical Strikes 3 | . 3 . Blast 3 | . 3 . Melee Attacks . | . . . Impact . | . . . Slashing . | . . . Piercing . | . . . Sneak Attacks . | . . . Combat Hostiles . | . . . Follow-up Attacks . | . . . Damage Inflicted 887 | 151 503 233 Guns 151 | 151 . . Cannons 725 | . 494 231 Explosions . | . . . Melee . | . . . Ramming 11 | . 9 2 Kinetic 526 | 151 248 127 Thermal 350 | . 246 104 Explosive . | . . . Electromagnetic . | . . . Impact . | . . . Slashing . | . . . Piercing . | . . . Highest Corruption . | . . . Average Corruption . | . . . Corruption Purged . | . . . Corruption Blocked . | . . . Overload Shots . | . . . Overflow Damage . | . . . Projectiles . | . . . Explosions . | . . . Melee . | . . . Knockbacks 5 | . 4 1 Impact . | . . . Kinetic 4 | . 3 1 Secondary 1 | . 1 . Self-Inflicted Damage . | . . . Shots . | . . . Rammed 4 | . 3 1 Targets Rammed 4 | . 3 1 Kicked . | . . . Crushed . | . . . Highest Temperature 16 | . 16 4 Average Temperature 8 | . 10 4 Received Heat Transfer 93 | . 57 36 Siege Activations . | . . . Robots Corrupted . | . . . Combat Hostiles . | . . . Parts Fried . | . . . Impact Corruptions . | . . . Robots Melted . | . . . Combat Hostiles . | . . . Parts Melted . | . . . Heat Transferred 740 | . 518 222 Parts Sabotaged . | . . . Parts Stolen . | . . . Parts Stripped . | . . . Power Chain Reactions . | . . . Alert | -11 -10 -10 ------- Run | Yrd Mat Min Peak Influence 184 | 10 184 90 Initial 20 | . 6 20 Average 54 | 3 53 67 Maximum Alert Level . | . . . Low Security (%) 100 | 100 100 100 Level 1 . | . . . Level 2 . | . . . Level 3 . | . . . Level 4 . | . . . Level 5 . | . . . High Security . | . . . Max Security . | . . . Squads Dispatched . | . . . Investigation . | . . . Extermination . | . . . Reinforcement . | . . . Assault . | . . . Garrison . | . . . Intercept . | . . . Searches Triggered . | . . . Construction Impeded . | . . . Haulers Reinforced . | . . . Active Scanning Responses . | . . . Cargo Convoy Interrupts . | . . . Stealth | -11 -10 -10 --------- Run | Yrd Mat Min Distress Signals 2 | . 2 . Communications Jammed . | . . . Distress Signals . | . . . Times Spotted 17 | . 11 6 Peak Tracking Total 4 | . 4 2 Tactical Retreats . | . . . Traps | -11 -10 -10 ------- Run | Yrd Mat Min Traps Triggered 1 | . 1 . Indirectly . | . . . Trap Hack Attempts . | . . . Triggered . | . . . Disarmed . | . . . Reprogrammed . | . . . Reused . | . . . Traps Extracted . | . . . Installed . | . . . Triggered . | . . . Machines | -11 -10 -10 ---------- Run | Yrd Mat Min Machines Disabled . | . . . Max in Single Turn . | . . . Machines Repaired . | . . . Machines Dismantled . | . . . Machines Sabotaged . | . . . Overloaded Fab Kills . | . . . Hacking | -11 -10 -10 --------- Run | Yrd Mat Min Machines Accessed 2 | . 2 . Terminals 2 | . 2 . Fabricators . | . . . Repair Stations . | . . . Recycling Units . | . . . Scanalyzers . | . . . Garrison Access . | . . . Total Hacks 5 | . 5 . Successful 2 | . 2 . Failed 3 | . 3 . Catastrophic . | . . . Database Lockouts . | . . . Manual 5 | . 5 . Terminals 5 | . 5 . Fabricators . | . . . Repair Stations . | . . . Recycling Units . | . . . Scanalyzers . | . . . Garrison Access . | . . . Terminal Hacks . | . . . Fabricator Hacks . | . . . Repair Station Hacks . | . . . Recycling Unit Hacks . | . . . Scanalyzer . | . . . Garrison Access Hacks . | . . . Unauthorized Hacks 2 | . 2 . Terminals 2 | . 2 . Botnet 2 | . 2 . Fabricators . | . . . Repair Stations . | . . . Recycling Units . | . . . Scanalyzers . | . . . Garrison Access . | . . . Data Cores Recovered . | . . . Used . | . . . Hacking Detections 2 | . 2 . Full Trace Events . | . . . Feedback Events . | . . . Feedback Blocked . | . . . Robot Schematics Acquired . | . . . Robots Built . | . . . Authchips . | . . . Time . | . . . Total Robot Build Rating . | . . . Part Schematics Acquired . | . . . Parts Built . | . . . Authchips . | . . . Time . | . . . Total Part Build Rating . | . . . Parts Repaired . | . . . Time . | . . . Parts Recycled . | . . . Recycled Matter . | . . . Retrieved Matter . | . . . Retrieved Components . | . . . Parts Scanalyzed . | . . . Part Schematics Acquired . | . . . Parts Damaged . | . . . Bothacking | -11 -10 -10 ------------ Run | Yrd Mat Min Used RIF Installer . | . . . Robots Hacked . | . . . Non-combat . | . . . Combat . | . . . Robot Hacks Applied . | . . . Relay Couplers Released . | . . . Fabnet Peak Effective % . | . . . Robots Rewired . | . . . Allies Hacked . | . . . Hacks Repelled . | . . . Allies | -11 -10 -10 -------- Run | Yrd Mat Min Total Allies . | . . . Largest Group . | . . . Highest-Rated Group . | . . . Highest-Rated Ally . | . . . Total Orders . | . . . Ally Attacks . | . . . Total Damage . | . . . Kills . | . . . Allies Corrupted . | . . . Allies Melted . | . . . Intel | -11 -10 -10 ------- Run | Yrd Mat Min Robot Analysis Total . | . . . Derelict Logs Recovered 1 | . . 1 Drone Launches . | . . . Drone Recoveries . | . . . Exploration | -11 -10 -10 ------------- Run | Yrd Mat Min Turns Passed 1326 | 134 609 583 Spaces Moved 708 | 57 316 335 Core 11 | 7 . 4 Treads 697 | 50 316 331 Legs . | . . . Wheels . | . . . Hover . | . . . Flight . | . . . Fastest Speed 50 | 50 160 50 Average Speed 159 | 150 160 159 Slowest Speed 450 | 160 160 450 Overloaded Moves . | . . . Propulsion Burnouts . | . . . Robots Hopped . | . . . Cave-ins Triggered . | . . . Exploration Rate (%) 36 | 4 48 56 Regions Visited 2 Branch Regions 1 Pre-discovered Areas 1 | . . 1 Known Exits Taken . | . . . Unknown Exits Taken 2 | 1 1 . Scrap Searched . | . . . Spaces Dug . | . . . Terrain Destroyed . | . . . Melee . | . . . Projectile . | . . . AOE . | . . . Terrain Rammed . | . . . Walls Destroyed . | . . . Machines Disabled . | . . . Actions | -11 -10 -10 --------- Run | Yrd Mat Min Total 807 | 79 367 361 Wait 13 | . 1 12 Move 706 | 56 315 335 Hop . | . . . Pick Up 12 | 3 8 1 Fast Attach 9 | 7 2 . Attach 1 | . 1 . Detach 3 | . 3 . Swap 2 | . 1 1 Drop 6 | . 6 . Fire 51 | 13 27 11 Melee . | . . . Ram . | . . . Kick . | . . . Crush 4 | . 3 1 Escape Stasis . | . . . Rewire . | . . . Trap . | . . . Miscellaneous . | . . . Route ------- -11/Scrapyard -10/Materials (discovered 2 exits: [*Mat] / [*Min]) -10/Mines (discovered 1 exit: [*Mat]) History --------- Turn | Location | Event 2 | -11/Scrapyard | Met Revision 17 11 | -11/Scrapyard | Discovered new exit (range 15) 135 | -11/Scrapyard | Entered Materials 317 | -10/Materials | Build established: Mutant 427 | -10/Materials | Discovered new exit (range 15) 601 | -10/Materials | Discovered new exit (range 5) 744 | -10/Materials | Entered Mines 829 | -10/Mines | Learned location of Zion (-6) 973 | -10/Mines | Discovered new exit (range 9) 1005 | -10/Mines | Assembled infested the area 1316 | -10/Mines | Core integrity fell below 50% 1326 | -10/Mines | Core integrity fell below 20% 1326 | -10/Mines | Released all parts (2) 1327 | -10/Mines | Destroyed by D-53 Grenadier with Mini Grenade Launcher Last Messages --------------- 01087_ Slammed into K-01 Serf. 01136_ K-01 Serf collects debris. 01173_ Acquired Hcp. Matter Pod. 01177_ K-01 Serf collects debris. 01237_ G-47 Trooper knocked back. 01243_ G-47 Trooper destroyed. 01246_ G-34 Mercenary destroyed. 01250_ Acquired 3 matter. 01254_ Acquired 13 matter. 01307_ R-06 Scavenger destroyed. 01313_ Beam Cannon destroyed. 01316_ Lgt. Nuclear Core destroyed. 01320_ Lgt. Treads destroyed. 01320_ K-01 Serf destroyed. 01323_ R-06 Scavenger destroyed. 01325_ U-05 Engineer lays Concrete. 01325_ Lgt. Cannon destroyed. 01326_ Released Lrg. Storage Unit. 01326_ Released Cooling System. 01326_ U-05 Engineer lays Concrete. Map ----- +----------------------------------------------------+ | ?# #????????## ### ##??????? | | ?# ##????????# ##?####???????? | | ?# ###### ##???????## #?????????????? | | ?##??????# ###??????# ### #?????????????? | | ?????##### ######?# #?## ##?????????????? | | ?????# #?# #??#####??????????????? | | ?????# ### ### #?????????????????????? | | ?????# ###### #?# ####??????????????????? | | ?????# #????## ##?##### # ##?????????????????? | | ?????# #?????############ #?????????????????? | | ?????# #????????#% %! #?????????????????? | | ?????# #????????# %* #?????????????????? | | ?????# #??????### ### ##?????????????????? | | ?????# #?????## #### %##??????????????????? | | ?????# #???### ##### %##???????????????????? | | ?????# #??## #??#####????????????????????? | | ?????# #??# ######??????????????????????? | | ?????# #??# # ??????????????????????? | | ?????# #??# ## ggg #??????????????????????? | | ?????# #??## ### ##?????????????????????? | | ?????# #???## #?????????????????????? | | ?????#%#????## #?????????????????????? | | ?????# #?????## [ ##### #???????????????? | | ?????# #??????# [ = #???????????????? | | ??#### #??????# #???????????????? | | ??# #??????# !! @ #####????????????????? | | ??# ####??????# !!= ##????????????????????? | | ??# #######???# =* #?????????????????????? | | ?## ##??# ##?????????????????????? | | ?# #??# dd #??????????????????????? | | ## ##?## ##??????????????????????? | | # #??## u# ####???????????????????????? | | # #???## %## ??????????????????????????? | | ## ##????# #? ?????????????????????????? | | ?## #####?????#% ?????????????????????????? | | ??## ##?????????##### ????????????????????????? | | ???# #???????????????#% ???????????????????????? | | ???# #????????????????# ???????????????????????? | | ??## #######???????????? ??????????????????????? | | ?## ## ##???????????## ?????????????????????? | | ## #?????????????? ???????????????????? | | #??????????????? ??????????????????? | | #???????????????????????????????????? | | ##???????????????????????????????????? | | ##?#####?????????????????????????????? | | # ### ##????????????????????????????? | | ### ##???????????????????????????? | | ??## ## ##??????????????????????????? | | ??## ### #??????????????????????????? | | ?## #?# ## #??????????????????????????? | +----------------------------------------------------+ Best States ------------- Heat Dissipation 47 Energy Generation 14 Energy Capacity 250 Matter Stores 300 Matter Capacity 300 Sight Range 16 Terrain Scan Range 16 Terrain Scan Density 10 Evasion (%) 40 Recoil Reduction 2 Item Schematics ----------------- None Robot Schematics ------------------ None Fabricated ------------ Nothing Alien Tech Used ----------------- None Achievements -------------- None Challenges ------------ None Game ------ Seed LargeMappingMegatreads Manual? 0 Play Time 00:11:15 Cumulative 44.0 hours Start 2024.04.07 @ 19:40:47 End 2024.04.07 @ 20:13:59 Sessions 1 Manual Loads 0 Difficulty Rogue Special Mode None Game No. 51 Rogue 51 Adventurer 0 Explorer 0 Win Type - Total 0 Types 0/0/0/0/0/0/0/0/0 Lore% 20 Gallery% 37 Achievement% 32 Wizard Run 0 Options --------- Layout 0 ASCII 0 Keyboard 0 Movement Mouse Keybinds 0 Fullscreen 2 Font 24/Smallcaps Map View 76x50 Zoom Use 0% Tactical HUD 1 Map Filters NONE Filters NONE Steam 1 RUN: 5ffe13c0-8a32-46cb-9eee-d073b63baef3